Cogmind - Beta 13 @@@ ROGUE MODE // 2024.07.14 @ 21:08:06 Player: ZergFTW Result: Destroyed by P-80 Master with Gamma Rifle Performance ------------- Evolutions (7) 3500 Regions Visited (20) 4000 Robots Destroyed (298) 1490 Value Destroyed (8662) 8662 Prototype IDs (31) 620 Alien Tech Used (3) 600 Bonus (10672) 10672 TOTAL SCORE: 29544 Bonus ------- High Alert Combat Kills 629 Follower Combat Kills 2469 Entered DSFs 500 Met Data Miner 300 Met Zhirov 300 Built Enhanced Grunts 300 A7 Reached Mainframe 300 Met R17 at Cetus 500 Read Decrypted Archives 300 Used Core Reset Matrix 3000 Scanned by Researcher 500 Met Sigix 2000 Friendly Fire -426 Cogmind --------- Core Integrity 0/1300 Matter 78/300 Energy 89/100 System Corruption 3% Temperature Cool (0) Movement Core (50) Location -3/Quarantine Parts ------- > --- POWER (2) -------- (None) > --- PROPULSION (6) --- (None) > --- UTILITY (11) ----- Improved Signal Interpreter Advanced Signal Interpreter Core Analyzer Hacking Suite > --- WEAPON (2) ------- (None) > --- INVENTORY (5) ---- Micro Antimatter Reactor Sigix Broadsword Sigix Containment Pod Peak State ------------ > --- POWER ------------ Matter Drive > --- PROPULSION ------- Improved Diametric Drive Impulse Thruster Array Impulse Thruster Array > --- UTILITY ---------- Structural Scanner Improved Signal Interpreter Core Analyzer Core Analyzer Hacking Suite Hacking Suite Hacking Suite Hacking Suite System Shield Advanced System Restoration Module Advanced Recalibrator > --- WEAPON ----------- Advanced KE Penetrator Compact Mass Driver > --- INVENTORY -------- Micro Antimatter Reactor Gravity Neutralizer Advanced Signal Interpreter Enhanced Gauss Cannon Long-range Missile Launcher [Rating: 130] Favorites ----------- Power Cooled Ion Engine Engine Cooled Ion Engine Power Core Micro Fission Core Reactor Micro Antimatter Reactor Propulsion Armored Treads Treads Armored Treads Leg Carbon-fiber Leg Wheel Compact Wheel Hover Unit Improved Hover Unit Flight Unit Cesium-ion Thruster Utility Hacking Suite Device Structural Scanner Storage Huge Storage Unit Processor Improved Signal Interpreter Hackware Hacking Suite Protection Medium Armor Plating Weapon Enhanced Autogun Energy Gun Medium Laser Ballistic Gun Enhanced Autogun Ballistic Cannon Bore Cannon Launcher Mini Grenade Launcher Special Weapon Remote Datajack Impact Weapon Heavy Flail Slashing Weapon Great Axe Build | -11 -10 -9 -9 -8 -8 -7 -7 -7 -7 -6 -6 -5 -5 -5 -5 -5 -4 -4 -3 -3 ------- Run | Yrd Mat Mat Min Mat Sto Fac Low Low Dat Pro Fac Fac Ext Cet Arc Hub Fac DSF Res Qua Slots Evolved 14 | . . 2 . 2 . 2 . . . . 2 2 . . . . 2 . 2 . Power 1 | . . . . . . . . . . . . . . . . . . . 1 . Propulsion 4 | . . 1 . . . 1 . . . . 1 . . . . . . . 1 . Utility 9 | . . 1 . 2 . 1 . . . . 1 2 . . . . 2 . . . Weapon . | . . . . . . . . . . . . . . . . . . . . . Parts Attached 444 | 7 10 32 4 38 32 79 10 7 . 11 54 36 36 10 4 25 3 10 23 13 Power 41 | 1 . 3 . 3 5 3 . 2 . . 5 3 2 . . 4 1 2 3 4 Engine 12 | 1 . 3 . 3 4 . . . . . 1 . . . . . . . . . Core 22 | . . . . . 1 3 . 2 . . 3 3 2 . . 4 1 2 1 . Reactor 7 | . . . . . . . . . . . 1 . . . . . . . 2 4 Propulsion 99 | 2 3 9 . 14 5 20 3 . . . 10 3 12 2 3 8 1 2 2 . Treads 37 | 2 3 8 . 11 5 3 . . . . . . 5 . . . . . . . Leg 21 | . . . . . . . . . . . . . 7 2 3 8 1 . . . Wheel 1 | . . . . . . . . . . . 1 . . . . . . . . . Hover 2 | . . . . . . . . . . . 2 . . . . . . . . . Flight 38 | . . 1 . 3 . 17 3 . . . 7 3 . . . . . 2 2 . Utility 177 | 2 3 8 1 13 13 33 5 2 . 5 27 20 14 4 1 6 . 6 11 3 Device 85 | 1 . 6 . 1 8 18 2 1 . 4 14 15 3 1 . 1 . 2 6 2 Storage 12 | 1 2 . . 1 1 3 . . . . 2 1 1 . . . . . . . Processor 19 | . 1 . . 1 2 2 . . . . 4 3 3 1 . . . . 1 1 Hackware 17 | . . . . 1 . 3 . 1 . . 3 1 . . . 1 . 3 4 . Protection 44 | . . 2 1 9 2 7 3 . . 1 4 . 7 2 1 4 . 1 . . Artifact . | . . . . . . . . . . . . . . . . . . . . . Weapon 127 | 2 4 12 3 8 9 23 2 3 . 6 12 10 8 4 . 7 1 . 7 6 Energy Gun 2 | . 1 . . . . 1 . . . . . . . . . . . . . . Energy Cannon . | . . . . . . . . . . . . . . . . . . . . . Ballistic Gun 51 | 2 2 9 3 7 5 7 . 1 . . . 4 . 2 . 3 1 . 4 1 Ballistic Cannon 13 | . 1 . . . . 1 . . . 3 . . . 2 . 1 . . 2 3 Launcher 10 | . . 3 . . . 2 . . . . 1 1 2 . . . . . 1 . Special Weapon 1 | . . . . . . . . . . . . . 1 . . . . . . . Impact Weapon 40 | . . . . 1 4 12 2 2 . 3 10 1 3 . . 2 . . . . Slashing Weapon 10 | . . . . . . . . . . . 1 4 2 . . 1 . . . 2 Piercing Weapon . | . . . . . . . . . . . . . . . . . . . . . Special Melee Weapon . | . . . . . . . . . . . . . . . . . . . . . Unidentified Prototypes 19 | . . 4 . 2 1 2 . . . . 3 . . 2 1 . . . 1 3 Parts Lost 103 | . . . . 9 2 9 4 . . 1 16 9 6 . 2 13 . 13 6 13 Power 6 | . . . . 1 . . . . . . 1 . . . . . . 2 2 . Propulsion 37 | . . . . 1 . 4 3 . . . 7 6 2 . 1 5 . 4 1 3 Utility 49 | . . . . 5 2 3 1 . . 1 7 3 4 . 1 5 . 6 2 9 Weapon 11 | . . . . 2 . 2 . . . . 1 . . . . 3 . 1 1 1 Highest Loss Streak 10 | . . . . 5 1 3 3 . . 1 6 2 3 . 2 6 . 10 2 10 To Critical Strikes 1 | . . . . . . . . . . . . . 1 . . . . . . . Average Slot Usage (%) 93 | . 99 99 99 96 98 93 86 84 92 87 83 89 87 94 93 87 84 87 73 65 Engine 6 | . 14 11 11 8 8 2 . . . . 1 1 . . . . . . . . Core 2 | . . . . . . 4 7 6 7 7 4 3 5 5 5 4 5 5 3 . Treads 17 | . 27 32 33 26 26 9 . . . . . . 9 . . . . . . . Leg 1 | . . . . . . . . . . . . . 7 29 28 21 26 22 . . Flight 7 | . . . . . . 20 29 30 30 30 24 21 3 . . . . . 13 10 Device 10 | . . 8 . 6 14 16 14 15 15 22 15 11 13 10 11 9 10 14 7 9 Storage 8 | . 14 11 11 9 9 7 7 7 7 7 4 5 5 5 5 5 5 5 3 . Processor 11 | . 13 11 11 8 17 9 7 7 7 7 8 16 10 12 17 12 10 10 12 14 Hackware 5 | . . . . 3 . 6 13 7 15 7 13 15 7 5 5 5 5 9 23 19 Protection 5 | . . 2 11 14 2 3 . . . . . . 10 10 5 12 10 9 . . Ballistic Gun 11 | . 16 21 21 17 17 4 . . . . . . . 7 11 1 5 3 3 2 Impact Weapon 1 | . . . . . . 2 4 6 7 2 3 4 4 . . 3 5 4 . . Naked Turns . | . . . . . . . . . . . . . . . . . . . . . Heaviest Build 109 | 14 89 98 98 109 107 108 29 29 29 34 39 34 91 88 75 78 58 71 48 37 Greatest Support 145 | 40 40 60 60 62 62 84 28 27 27 27 33 37 145 95 125 125 78 78 48 39 Greatest Overweight (x) 7 | . 2 1 1 2 1 2 1 1 1 1 7 1 2 . . 1 . 1 . . Average Overweight (x) . | . 1 1 1 1 1 . . . 1 . . . . . . . . . . . Largest Inventory Capacity 25 | 8 25 25 25 25 25 25 15 15 15 15 15 10 15 15 15 15 15 15 15 5 Average Capacity 19 | 7 19 25 25 25 25 17 15 15 15 15 12 10 13 15 15 15 15 15 12 5 Most Carried 25 | 5 19 25 25 25 25 24 15 14 12 13 15 10 15 15 15 14 12 15 13 5 Average Carried 17 | 2 13 23 24 24 24 15 14 12 12 10 11 9 12 14 14 11 12 12 7 4 Final Capacity 25 | 8 25 25 25 25 25 15 15 15 15 15 10 10 15 15 15 15 15 15 5 5 Final Carried 25 | 5 18 25 24 25 25 15 13 12 12 10 8 10 15 15 12 13 12 11 5 5 Class Distribution -------------------- 51% | Mutant 15% | Scavenger-Mutant 8% | Hacker-Scout 6% | Scavenger-Assassin 3% | Scavenger-Scout Dominant Class ---------------- Mutant | -10/Materials Mutant | -9/Materials Mutant | -9/Mines Mutant | -8/Materials Mutant | -8/Storage Scavenger-Scout | -7/Factory Scavenger-Mutant | -7/Lower Caves Scavenger-Mutant | -7/Lower Caves Scavenger-Mutant | -7/Data Miner Scavenger-Scout | -6/Proximity Caves Hacker-Scout | -6/Factory Hacker-Scout | -5/Factory Scavenger-Gladiator | -5/Extension Scavenger-Mutant | -5/Cetus Scavenger-Skirmisher | -5/Archives Scavenger-Assassin | -5/Hub_04(d) Scavenger-Assassin | -4/Factory Scavenger-Assassin | -4/DSF Hacker-Mutant | -3/Research Hacker-Mutant | -3/Quarantine Resources | -11 -10 -9 -9 -8 -8 -7 -7 -7 -7 -6 -6 -5 -5 -5 -5 -5 -4 -4 -3 -3 ----------- Run | Yrd Mat Mat Min Mat Sto Fac Low Low Dat Pro Fac Fac Ext Cet Arc Hub Fac DSF Res Qua Matter Collected 9779 | 390 498 1044 103 1773 1575 908 168 292 . 209 748 350 651 281 42 430 . 12 85 220 Remotely . | . . . . . . . . . . . . . . . . . . . . . Salvage Created 12253 | 147 834 1577 116 2362 2277 854 137 33 . 201 1499 372 535 344 50 747 . . 144 24 Parts 679 | 11 63 89 13 139 139 37 . . . . 59 25 33 15 2 40 . . 12 2 Haulers Intercepted 24 | . 2 6 . 6 6 . . . . . 4 . . . . . . . . . Recyclers Shooed 8 | . 1 1 . 2 1 . . . . . 3 . . . . . . . . . Parts Field Recycled . | . . . . . . . . . . . . . . . . . . . . . Retrieved Matter . | . . . . . . . . . . . . . . . . . . . . . Parts Self-Destructed 4 | . . . . . . . . 3 . 1 . . . . . . . . . . Prevented 4 | . . . . . . . . 4 . . . . . . . . . . . . Kills | -11 -10 -9 -9 -8 -8 -7 -7 -7 -7 -6 -6 -5 -5 -5 -5 -5 -4 -4 -3 -3 ------- Run | Yrd Mat Mat Min Mat Sto Fac Low Low Dat Pro Fac Fac Ext Cet Arc Hub Fac DSF Res Qua Combat Hostiles Destroyed 177 | . 13 26 5 39 36 14 . . . . 9 6 4 5 1 14 . . 5 . Melee 17 | . . . . . . . . . . . 5 3 3 . . 6 . . . . Guns 133 | . 11 25 5 39 36 9 . . . . . 2 . 2 1 2 . . 1 . Cannons 11 | . 2 . . . . . . . . . . . . 3 . 6 . . . . AOE 11 | . . 1 . . . 4 . . . . 1 . 1 . . . . . 4 . Classes Destroyed 16 | 3 6 2 . 3 . 1 1 . . . . . . . . . . . . . Worker 20 | 1 . 2 . 2 2 6 . . . . 6 . . . . 1 . . . . Builder 27 | . 3 1 . . 1 3 . . . . 13 2 3 . . 1 . . . . Tunneler 4 | 2 . . . . . 1 . . . . 1 . . . . . . . . . Hauler 24 | . 2 6 . 6 6 . . . . . 4 . . . . . . . . . Recycler 18 | 1 4 2 . 2 1 1 . . . . 4 1 2 . . . . . . . Operator 9 | . 2 1 . 1 2 . . . . . . 1 1 . . . . . . 1 Watcher 22 | . 3 2 . 4 2 4 . . . . 3 2 1 1 . . . . . . Swarmer 46 | . 5 8 3 7 3 2 . . . . 5 5 . . . 4 . . 4 . Grunt 74 | . 8 9 2 23 19 2 . . . . . . 2 2 1 6 . . . . Brawler 3 | . . 1 . . 2 . . . . . . . . . . . . . . . Duelist 4 | . . . . 1 1 1 . . . . . . . . . 1 . . . . Sentry 33 | . . 8 . 6 11 4 . . . . 1 . 1 . . 2 . . . . Hunter 3 | . . . . 1 . . . . . . . 1 . . . 1 . . . . Programmer 9 | . . . . . . 5 . . . . 3 . . . . . . . 1 . Heavy 1 | . . . . 1 . . . . . . . . . . . . . . . . Cetus Guard 3 | . . . . . . . . . . . . . . 3 . . . . . . Decomposer 2 | . . . . . . . 1 . . 1 . . . . . . . . . . Samaritan 4 | . . . . . . . 3 1 . . . . . . . . . . . . Guerrilla 1 | . . . . . . . . . . . . . 1 . . . . . . . Best Kill Streak 11 | 4 7 3 3 8 5 8 . . . . 6 3 1 2 1 11 . . 4 1 Combat Bots Only 7 | . 6 3 3 7 5 4 . . . . 2 1 1 2 1 5 . . 4 . Max Kills in Single Turn 3 | 1 2 1 1 2 1 1 1 1 . 1 2 1 1 1 1 1 . . 3 1 Gunslinging 1 | . 1 . . . . . . . . . . . . . . . . . . . Exploded 3 | . . 1 . . . 1 . . . . 1 . 1 . . . . . 3 . Melee 1 | . . . . . . . . . . . 1 1 1 . . 1 . . . . Uniques/NPCs Destroyed . | . . . . . . . . . . . . . . . . . . . . . Combat | -11 -10 -9 -9 -8 -8 -7 -7 -7 -7 -6 -6 -5 -5 -5 -5 -5 -4 -4 -3 -3 -------- Run | Yrd Mat Mat Min Mat Sto Fac Low Low Dat Pro Fac Fac Ext Cet Arc Hub Fac DSF Res Qua Hostile Shots Fired 2038 | . 58 127 17 186 175 360 26 8 . 39 235 77 32 9 1 204 . 157 84 243 Missed 719 | . 15 34 5 35 57 127 13 2 . 26 81 41 4 3 1 54 . 65 38 118 Damage Taken 21796 | . 458 1064 114 2471 1924 2315 220 87 . 162 1978 604 973 144 984 3001 . 2224 1060 2013 Core 3885 | . 66 111 22 242 121 334 25 27 . 51 697 138 84 . 52 218 . 378 256 1063 Absorbed by Shields 456 | . . 110 . . . . . . . . . . 176 91 . . . 79 . . Redirected to Shielding 113 | . . . . 17 . 18 17 . . 38 23 . . . . . . . . . Regen/Repaired (Parts) 1268 | . 191 43 . 480 318 143 . . . . 77 . . . . . . . . 16 Core Remaining (%) 55 | 100 73 . 66 . 34 . . . . 37 18 . . . . 50 . 67 . . Volleys Fired 698 | 9 64 115 8 166 177 53 . . . 24 10 4 18 11 3 19 . . 11 6 Largest 2 | 2 2 2 2 2 2 2 . . . 1 1 2 1 2 2 2 . . 2 2 Hottest 123 | 40 70 50 46 61 50 90 . . . 48 30 56 43 114 70 92 . . 70 123 Shots Fired 1249 | 18 128 229 16 333 288 87 . . . 24 10 5 17 24 6 34 . . 20 10 Gun 1121 | 18 114 228 16 333 288 69 . . . . . 5 . 9 6 17 . . 18 . Cannon 82 | . 14 . . . . 2 . . . 24 . . . 15 . 17 . . . 10 Launcher 44 | . . 1 . . . 16 . . . . 10 . 15 . . . . . 2 . Special 2 | . . . . . . . . . . . . . 2 . . . . . . . Kinetic 1151 | 18 78 228 16 333 288 69 . . . 24 . 5 . 24 6 34 . . 18 10 Thermal 52 | . 50 . . . . 2 . . . . . . . . . . . . . . Explosive 44 | . . 1 . . . 16 . . . . 10 . 15 . . . . . 2 . Electromagnetic . | . . . . . . . . . . . . . . . . . . . . . Robot Hit Streak 30 | 5 10 19 13 19 30 29 . . . . 7 6 8 3 4 5 . . 8 2 Robot Miss Streak 7 | 3 7 3 3 7 4 3 . . . . 1 4 1 6 1 5 . . 2 3 Penetration Max 1 | . . . . 1 . . . . . . . . . 1 1 1 . . . . Secondary Targets 16 | . 5 3 . 4 4 . . . . . . . . . . . . . . . Max Gunslinging Chain 1 | . 1 1 . 1 1 . . . . . . . . . . . . . . . Shots Hit Robots 981 | 8 86 158 9 225 219 83 4 1 . 5 62 18 30 9 5 40 . . 15 4 Core Hits 425 | 5 37 59 6 87 88 38 1 . . 1 23 14 20 8 3 24 . . 9 2 Critical Kills 13 | . . 2 . 1 . . 1 . . . . . . 3 . 5 . . 1 . Critical Parts Destroyed 35 | . . . . 3 1 5 2 . . 1 16 1 . 1 . 3 . . 2 . Critical Strikes 64 | . 4 3 . 4 1 5 3 . . 1 19 1 1 5 . 11 . . 3 3 Burn 3 | . 3 . . . . . . . . . . . . . . . . . . . Destroy 25 | . . 3 . 4 1 . . . . . . . . 5 . 9 . . 3 . Blast 4 | . 1 . . . . . . . . . . . . . . . . . . 3 Smash 27 | . . . . . . 5 3 . . 1 16 1 1 . . . . . . . Sever 5 | . . . . . . . . . . . 3 . . . . 2 . . . . Melee Attacks 271 | . . . . 4 5 40 5 3 . 6 100 29 40 . . 36 . . . 3 Impact 153 | . . . . 4 5 40 5 3 . 6 67 8 10 . . 5 . . . . Slashing 118 | . . . . . . . . . . . 33 21 30 . . 31 . . . 3 Piercing . | . . . . . . . . . . . . . . . . . . . . . Sneak Attacks 55 | . . . . . . 11 4 1 . 1 25 4 8 . . 1 . . . . Combat Hostiles 1 | . . . . . . . . . . . . 1 . . . . . . . . Follow-up Attacks 8 | . . . . . . . . . . . . 3 4 . . 1 . . . . Damage Inflicted 26904 | 107 1222 2507 150 3925 3954 3126 457 124 . 543 4771 942 1935 309 217 1453 . . 923 239 Guns 13642 | 107 996 2412 150 3914 3954 964 . . . . . 64 . 111 217 333 . . 420 . Cannons 823 | . 226 . . . . . . . . . . . . 198 . 252 . . . 147 Explosions 2465 | . . 95 . . . 897 . . . . 474 . 496 . . . . . 503 . Melee 9963 | . . . . . . 1265 457 124 . 543 4297 878 1439 . . 868 . . . 92 Ramming 11 | . . . . 11 . . . . . . . . . . . . . . . . Kinetic 13979 | 107 768 2412 150 3914 3954 932 . . . . . 64 . 309 217 585 . . 420 147 Thermal 486 | . 454 . . . . 32 . . . . . . . . . . . . . . Explosive 2465 | . . 95 . . . 897 . . . . 474 . 496 . . . . . 503 . Electromagnetic . | . . . . . . . . . . . . . . . . . . . . . Impact 5664 | . . . . . . 1265 457 124 . 543 2842 160 273 . . . . . . . Slashing 4299 | . . . . . . . . . . . 1455 718 1166 . . 868 . . . 92 Piercing . | . . . . . . . . . . . . . . . . . . . . . Highest Corruption 12 | . . 4 4 2 2 3 3 3 3 3 11 3 12 12 12 12 . . 6 3 Average Corruption 4 | . . 4 4 2 2 2 3 3 3 3 9 1 10 12 12 12 . . 2 2 Corruption Purged 17 | . . . . . . . . . . . 2 1 4 . . . . . 10 . Corruption Blocked . | . . . . . . . . . . . . . . . . . . . . . Effects 312 | . . 28 11 18 56 18 15 12 2 19 38 2 39 21 3 25 . . 3 2 Message Errors 76 | . . 9 3 3 13 4 5 2 2 7 7 2 10 4 . 3 . . . 2 Matter Fused 64 | . . 5 1 4 11 2 . 3 . 3 12 . 10 5 1 6 . . 1 . Heat Flow Errors 40 | . . 2 4 4 7 1 3 3 . 3 5 . 2 2 . 4 . . . . Energy Discharges 38 | . . 5 2 2 8 2 2 . . 2 4 . 5 4 . 2 . . . . Parts Rejected 5 | . . 1 . . . . . . . . 1 . . . . 2 . . 1 . Parts Fused 2 | . . . . . . . . . . . 1 . 1 . . . . . . . Data Loss (minor) 42 | . . 3 1 2 7 5 2 2 . 1 2 . 7 3 2 4 . . 1 . Data Loss (major) 17 | . . 3 . . 3 3 1 1 . 1 4 . 1 . . . . . . . Misfires 6 | . . . . 2 2 . . . . . . . . 2 . . . . . . Alerts 15 | . . . . 1 5 1 2 1 . 2 . . 2 1 . . . . . . Misdirections 4 | . . . . . . . . . . . 2 . . . . 2 . . . . Weapon Failures 3 | . . . . . . . . . . . . . 1 . . 2 . . . . Overload Shots . | . . . . . . . . . . . . . . . . . . . . . Overflow Damage 4303 | . . . . . . 824 317 123 . 406 2148 273 103 . . 36 . . 36 37 Projectiles 30 | . . . . . . . . . . . 30 . . . . . . . . . Explosions 50 | . . . . . . 9 . . . . . . 5 . . . . . 36 . Melee 4223 | . . . . . . 815 317 123 . 406 2118 273 98 . . 36 . . . 37 Knockbacks 24 | . 1 . . . . 8 . . . . 10 1 1 1 . 1 . . . 1 Impact 19 | . . . . . . 8 . . . . 9 1 1 . . . . . . . Kinetic 4 | . 1 . . . . . . . . . . . . 1 . 1 . . . 1 Secondary 1 | . . . . . . . . . . . 1 . . . . . . . . . Self-Inflicted Damage 117 | . . . . . . 60 . . . . . . 57 . . . . . . . Shots 5 | . . . . . . 3 . . . . . . 2 . . . . . . . Rammed 4 | . . . . 2 . . . . . . . . . . . . . . . 2 Targets Rammed 4 | . . . . 2 . . . . . . . . . . . . . . . 2 Kicked . | . . . . . . . . . . . . . . . . . . . . . Crushed . | . . . . . . . . . . . . . . . . . . . . . Highest Temperature 327 | . 114 216 240 245 264 107 288 249 . 225 198 5 289 282 30 327 . 8 78 . Average Temperature 62 | . 33 34 101 40 37 21 145 98 . 56 91 3 149 110 14 112 . 5 42 . Received Heat Transfer 4247 | . 177 445 27 837 885 486 27 . . 18 60 54 165 20 . 622 . 325 39 60 Effects 5 | . . . . . . . 1 . . . . . . . . 4 . . . . Energy Bleed 2 | . . . . . . . 1 . . . . . . . . 1 . . . . Interference 3 | . . . . . . . . . . . . . . . . 3 . . . . Siege Activations . | . . . . . . . . . . . . . . . . . . . . . Robots Corrupted . | . . . . . . . . . . . . . . . . . . . . . Combat Hostiles . | . . . . . . . . . . . . . . . . . . . . . Parts Fried 49 | . . . . . . 16 6 1 . 1 24 1 . . . . . . . . Impact Corruptions 111 | . . . . . . 33 10 7 . 10 48 3 . . . . . . . . Robots Melted . | . . . . . . . . . . . . . . . . . . . . . Combat Hostiles . | . . . . . . . . . . . . . . . . . . . . . Parts Melted 2 | . 2 . . . . . . . . . . . . . . . . . . . Heat Transferred 1628 | . 1554 . . . . 74 . . . . . . . . . . . . . . Parts Sabotaged 1 | . . . . . . . . . . . . . . . . 1 . . . . Parts Stolen . | . . . . . . . . . . . . . . . . . . . . . Parts Stripped . | . . . . . . . . . . . . . . . . . . . . . Power Chain Reactions . | . . . . . . . . . . . . . . . . . . . . . Alert | -11 -10 -9 -9 -8 -8 -7 -7 -7 -7 -6 -6 -5 -5 -5 -5 -5 -4 -4 -3 -3 ------- Run | Yrd Mat Mat Min Mat Sto Fac Low Low Dat Pro Fac Fac Ext Cet Arc Hub Fac DSF Res Qua Peak Influence 888 | 20 332 531 337 471 789 567 . . . . 465 467 742 888 615 642 119 118 568 371 Initial 415 | . 13 . 202 53 195 358 . . . . . 227 161 415 276 210 119 83 6 319 Average 281 | 8 101 212 268 258 413 386 . . . . 229 301 304 660 402 394 119 92 328 185 Maximum Alert Level 3 | . 1 2 1 2 3 2 . . . . 2 2 3 3 2 2 . . 2 1 Low Security (%) 34 | 100 78 55 20 33 10 3 . . . . 35 8 44 . . 2 100 100 24 58 Level 1 39 | . 21 19 79 49 46 46 . . . . 51 80 20 . 53 62 . . 20 41 Level 2 23 | . . 25 . 16 33 49 . . . . 12 10 33 72 46 34 . . 55 . Level 3 2 | . . . . . 9 . . . . . . . 2 27 . . . . . . Level 4 . | . . . . . . . . . . . . . . . . . . . . . Level 5 . | . . . . . . . . . . . . . . . . . . . . . High Security . | . . . . . . . . . . . . . . . . . . . . . Max Security . | . . . . . . . . . . . . . . . . . . . . . Squads Dispatched 71 | . 3 8 . 7 8 14 . . . . 13 4 4 1 . 3 . 1 1 4 Investigation 38 | . 1 7 . 4 1 6 . . . . 7 3 3 1 . 2 . . 1 2 Extermination 9 | . . . . . . 4 . . . . 3 1 . . . . . . . 1 Reinforcement 13 | . 2 1 . 3 2 1 . . . . 2 . . . . . . 1 . 1 Assault 6 | . . . . . 3 . . . . . 1 . 1 . . 1 . . . . Garrison 5 | . . . . . 2 3 . . . . . . . . . . . . . . Intercept . | . . . . . . . . . . . . . . . . . . . . . Searches Triggered 1 | . . . . . . . . . . . 1 . . . . . . . . . Data Miner Redirects 2 | . . . . . . . . . . . 2 . . . . . . . . . Construction Impeded 1 | . . . . . . . . . . . 1 . . . . . . . . . Haulers Reinforced 1 | . . . . . . . . . . . 1 . . . . . . . . . Active Scanning Responses . | . . . . . . . . . . . . . . . . . . . . . Cargo Convoy Interrupts . | . . . . . . . . . . . . . . . . . . . . . Stealth | -11 -10 -9 -9 -8 -8 -7 -7 -7 -7 -6 -6 -5 -5 -5 -5 -5 -4 -4 -3 -3 --------- Run | Yrd Mat Mat Min Mat Sto Fac Low Low Dat Pro Fac Fac Ext Cet Arc Hub Fac DSF Res Qua Distress Signals 21 | . 1 4 . 3 2 . . . . . 1 3 . 2 . 1 . . 3 1 Communications Jammed . | . . . . . . . . . . . . . . . . . . . . . Distress Signals . | . . . . . . . . . . . . . . . . . . . . . Times Spotted 486 | . 24 37 5 66 55 30 14 8 . 15 39 32 30 12 18 25 . 13 28 35 Peak Tracking Total 16 | . 5 3 3 8 6 6 7 4 . 5 4 7 5 5 16 10 . 8 11 13 Tactical Retreats 66 | . . 3 . 5 1 4 3 2 . 6 13 8 2 . . 2 . 4 8 5 Traps | -11 -10 -9 -9 -8 -8 -7 -7 -7 -7 -6 -6 -5 -5 -5 -5 -5 -4 -4 -3 -3 ------- Run | Yrd Mat Mat Min Mat Sto Fac Low Low Dat Pro Fac Fac Ext Cet Arc Hub Fac DSF Res Qua Traps Triggered 19 | . 1 1 . 3 2 1 . . . . 4 3 2 . . . . 1 1 . Indirectly . | . . . . . . . . . . . . . . . . . . . . . Trap Hack Attempts . | . . . . . . . . . . . . . . . . . . . . . Triggered . | . . . . . . . . . . . . . . . . . . . . . Disarmed . | . . . . . . . . . . . . . . . . . . . . . Reprogrammed . | . . . . . . . . . . . . . . . . . . . . . Reused . | . . . . . . . . . . . . . . . . . . . . . Traps Extracted . | . . . . . . . . . . . . . . . . . . . . . Installed . | . . . . . . . . . . . . . . . . . . . . . Triggered 1 | . . . . . . 1 . . . . . . . . . . . . . . Machines | -11 -10 -9 -9 -8 -8 -7 -7 -7 -7 -6 -6 -5 -5 -5 -5 -5 -4 -4 -3 -3 ---------- Run | Yrd Mat Mat Min Mat Sto Fac Low Low Dat Pro Fac Fac Ext Cet Arc Hub Fac DSF Res Qua Machines Disabled 20 | . 1 1 . 3 5 1 . . . . 1 . 2 1 1 2 . . . 2 Max in Single Turn 1 | . 1 1 . 1 1 1 . . . . 1 . 1 1 . 1 . . . 1 Garrison Access 8 | . . . . 1 1 1 . . . . 3 . . . . 1 . . 1 . Machines Repaired . | . . . . . . . . . . . . . . . . . . . . . Machines Dismantled . | . . . . . . . . . . . . . . . . . . . . . Machines Sabotaged . | . . . . . . . . . . . . . . . . . . . . . Overloaded Fab Kills . | . . . . . . . . . . . . . . . . . . . . . Hacking | -11 -10 -9 -9 -8 -8 -7 -7 -7 -7 -6 -6 -5 -5 -5 -5 -5 -4 -4 -3 -3 --------- Run | Yrd Mat Mat Min Mat Sto Fac Low Low Dat Pro Fac Fac Ext Cet Arc Hub Fac DSF Res Qua Machines Accessed 138 | . 8 16 . 15 16 13 . 4 4 . 25 8 3 3 1 6 1 . 4 11 Terminals 88 | . 6 11 . 10 11 5 . 1 . . 12 6 3 3 . 5 1 . 3 11 Fabricators 7 | . . . . . . 2 . . . . 4 1 . . . . . . . . Repair Stations 10 | . 1 1 . 2 2 2 . . . . 2 . . . . . . . . . Recycling Units 11 | . 1 2 . 1 2 2 . . . . 3 . . . . . . . . . Scanalyzers 5 | . . 2 . 1 . . . . . . 1 1 . . . . . . . . Garrison Access 9 | . . . . 1 1 2 . . . . 3 . . . . 1 . . 1 . Total Hacks 416 | . 20 45 . 43 40 39 . 10 29 . 72 22 11 9 25 16 1 . 10 24 Successful 275 | . 11 25 . 30 27 20 . 10 29 . 50 12 4 6 25 5 1 . 6 14 Failed 140 | . 9 20 . 12 13 19 . . . . 22 10 7 3 . 11 . . 4 10 Catastrophic 27 | . . 3 . 1 2 4 . . . . 2 2 4 1 . 1 . . 3 4 Database Lockouts 1 | . . . . 1 . . . . . . . . . . . . . . . . Manual 189 | . 15 29 . 26 15 9 . . . . 36 12 10 1 . 12 . . 9 15 Terminals 240 | . 15 28 . 32 23 10 . 1 . . 48 15 11 9 . 14 1 . 9 24 Fabricators 16 | . . . . . . 5 . . . . 8 3 . . . . . . . . Repair Stations 40 | . 4 2 . 6 10 14 . . . . 4 . . . . . . . . . Recycling Units 29 | . 1 8 . 1 6 7 . . . . 6 . . . . . . . . . Scanalyzers 15 | . . 7 . 2 . . . . . . 2 4 . . . . . . . . Garrison Access 13 | . . . . 2 1 3 . . . . 4 . . . . 2 . . 1 . Terminal Hacks 139 | . 2 4 . 11 8 1 . 10 29 . 19 3 2 6 25 4 1 . 3 11 Record 54 | . . . . 1 . . . 8 11 . 2 . . 5 25 1 . . . 1 Part Schematic 16 | . 1 . . . 1 . . . 11 . 3 . . . . . . . . . Robot Schematic 4 | . . . . . . . . . 4 . . . . . . . . . . . Robot Analysis 4 | . . 2 . 2 . . . . . . . . . . . . . . . . Prototype ID Bank 5 | . . . . . . . . . 3 . 1 . . . . . . . . 1 Open Door 9 | . . . . . 5 . . 2 . . . . . 1 . . . . . 1 Open DSF 2 | . . . . . . . . . . . . 1 . . . . 1 . . . Level Access Points 3 | . . . . . 1 . . . . . . . . . . . . . . 2 Branch Access Points 6 | . . 1 . 1 . . . . . . 1 1 . . . . . . 1 1 Terminal Index 3 | . . . . . 1 . . . . . 1 . . . . . . . 1 . Fabricator Index 2 | . . . . . . . . . . . 1 . . . . . . . 1 . Repair Station Index 1 | . . . . . . . . . . . 1 . . . . . . . . . Garrison Index 3 | . . . . . . . . . . . 1 1 . . . . . . . 1 Alert Level 5 | . . . . 2 . . . . . . 2 . . . . 1 . . . . Unreport Threat 10 | . . . . 3 . 1 . . . . 1 . 1 . . 2 . . . 2 Locate Traps 9 | . 1 1 . 2 . . . . . . 3 . 1 . . . . . . 1 Recall Extermination 1 | . . . . . . . . . . . 1 . . . . . . . . . Registered Components 1 | . . . . . . . . . . . . . . . . . . . . 1 Registered Prototypes 1 | . . . . . . . . . . . 1 . . . . . . . . . Fabricator Hacks 12 | . . . . . . 3 . . . . 7 2 . . . . . . . . Network Status 1 | . . . . . . . . . . . 1 . . . . . . . . . Load Schematic 6 | . . . . . . 2 . . . . 3 1 . . . . . . . . Build 5 | . . . . . . 1 . . . . 3 1 . . . . . . . . Repair Station Hacks 31 | . 4 2 . 6 8 8 . . . . 3 . . . . . . . . . Scan Component 17 | . 2 1 . 3 4 5 . . . . 2 . . . . . . . . . Repair 14 | . 2 1 . 3 4 3 . . . . 1 . . . . . . . . . Recycling Unit Hacks 12 | . 1 2 . 1 2 2 . . . . 4 . . . . . . . . . Process 1 | . . . . . . 1 . . . . . . . . . . . . . . Report Inventory 7 | . 1 1 . 1 2 . . . . . 2 . . . . . . . . . Retrieve Matter 1 | . . . . . . 1 . . . . . . . . . . . . . . Retrieve Components 3 | . . 1 . . . . . . . . 2 . . . . . . . . . Scanalyzer 14 | . . 7 . 2 . . . . . . 2 3 . . . . . . . . Insert Component 8 | . . 4 . 1 . . . . . . 1 2 . . . . . . . . Analyze 6 | . . 3 . 1 . . . . . . 1 1 . . . . . . . . Garrison Access Hacks 6 | . . . . 1 1 1 . . . . 2 . . . . . . . 1 . Seal Access 6 | . . . . 1 1 1 . . . . 2 . . . . . . . 1 . Unauthorized Hacks 61 | . 4 10 . 9 8 5 . . . . 13 4 2 . . 1 . . 2 3 Terminals 58 | . 4 9 . 9 6 5 . . . . 13 4 2 . . 1 . . 2 3 Assimilate 6 | . . . . . . 2 . . . . 3 1 . . . . . . . . Botnet 52 | . 4 9 . 9 6 3 . . . . 10 3 2 . . 1 . . 2 3 Fabricators . | . . . . . . . . . . . . . . . . . . . . . Repair Stations . | . . . . . . . . . . . . . . . . . . . . . Recycling Units 3 | . . 1 . . 2 . . . . . . . . . . . . . . . Reject 1 | . . . . . 1 . . . . . . . . . . . . . . . Mask 2 | . . 1 . . 1 . . . . . . . . . . . . . . . Scanalyzers . | . . . . . . . . . . . . . . . . . . . . . Garrison Access . | . . . . . . . . . . . . . . . . . . . . . Data Cores Recovered 2 | . . . . . . . . . . . . 1 . . . . . . . 1 Used 1 | . . . . . . . . . . . . . . . . . . . . 1 Hacking Detections 106 | . 7 16 . 10 12 12 . . . . 19 7 3 2 . 6 . . 3 9 Full Trace Events 32 | . . 6 . 2 2 6 . . . . 5 3 2 1 . 2 . . 1 2 Feedback Events 6 | . . . . . . . . . . . 1 3 . . . 1 . . . 1 Corruption 2 | . . . . . . . . . . . 1 1 . . . . . . . . Hackware Fried 4 | . . . . . . . . . . . . 2 . . . 1 . . . 1 Feedback Blocked . | . . . . . . . . . . . . . . . . . . . . . Robot Schematics Acquired 4 | . . . . . . . . . 4 . . . . . . . . . . . Robots Built . | . . . . . . . . . . . . . . . . . . . . . Authchips . | . . . . . . . . . . . . . . . . . . . . . Time . | . . . . . . . . . . . . . . . . . . . . . Total Robot Build Rating . | . . . . . . . . . . . . . . . . . . . . . Part Schematics Acquired 23 | . 1 3 . 1 1 . . . 11 . 4 1 . . . . . . . 1 Parts Built 8 | . . . . . . 1 . . . . 5 2 . . . . . . . . Authchips . | . . . . . . . . . . . . . . . . . . . . . Time 335 | . . . . . . 73 . . . . 215 47 . . . . . . . . Total Part Build Rating 36 | . . . . . . 3 . . . . 23 10 . . . . . . . . Parts Repaired 13 | . 2 1 . 3 4 3 . . . . . . . . . . . . . . Time 544 | . 52 51 . 108 164 89 . . . . 80 . . . . . . . . . Parts Recycled . | . . . . . . . . . . . . . . . . . . . . . Recycled Matter 10 | . . . . . . 10 . . . . . . . . . . . . . . Retrieved Matter 10 | . . . . . . 10 . . . . . . . . . . . . . . Retrieved Components 12 | . . 10 . . . . . . . . 2 . . . . . . . . . Parts Scanalyzed 6 | . . 3 . 1 . . . . . . 1 1 . . . . . . . . Part Schematics Acquired 6 | . . 3 . 1 . . . . . . 1 1 . . . . . . . . Parts Damaged . | . . . . . . . . . . . . . . . . . . . . . Bothacking | -11 -10 -9 -9 -8 -8 -7 -7 -7 -7 -6 -6 -5 -5 -5 -5 -5 -4 -4 -3 -3 ------------ Run | Yrd Mat Mat Min Mat Sto Fac Low Low Dat Pro Fac Fac Ext Cet Arc Hub Fac DSF Res Qua Used RIF Installer . | . . . . . . . . . . . . . . . . . . . . . Robots Hacked 1 | . . . . . . . . . . . . . 1 . . . . . . . Non-combat 1 | . . . . . . . . . . . . . 1 . . . . . . . Combat . | . . . . . . . . . . . . . . . . . . . . . Robot Hacks Applied 1 | . . . . . . . . . . . . . 1 . . . . . . . no_distress 1 | . . . . . . . . . . . . . 1 . . . . . . . Relay Couplers Released 9 | . . . . 2 . 3 . . . . 3 . . . . 1 . . . . Machine Destruction 3 | . . . . 2 . . . . . . . . . . . 1 . . . . Programmers 6 | . . . . . . 3 . . . . 3 . . . . . . . . . Fabnet Peak Effective % . | . . . . . . . . . . . . . . . . . . . . . Robots Rewired 13 | . . . . . . . . . . . . . 13 . . . . . . . Allies Hacked . | . . . . . . . . . . . . . . . . . . . . . Hacks Repelled . | . . . . . . . . . . . . . . . . . . . . . Allies | -11 -10 -9 -9 -8 -8 -7 -7 -7 -7 -6 -6 -5 -5 -5 -5 -5 -4 -4 -3 -3 -------- Run | Yrd Mat Mat Min Mat Sto Fac Low Low Dat Pro Fac Fac Ext Cet Arc Hub Fac DSF Res Qua Total Allies 43 | . . . 2 . 2 1 . 3 . . 3 1 26 5 . . . . . . Largest Group 16 | . . . 2 2 2 1 . 3 . . 1 1 16 10 9 . . . . . Highest-Rated Group 726 | . . . 45 45 129 93 . 60 . . 26 26 609 726 630 . . . . . Highest-Rated Ally 159 | . . . 31 31 100 93 . 20 . . 26 26 159 159 159 . . . . . Total Orders 1 | . . . . . . . . . . . . 1 . . . . . . . . STAY 1 | . . . . . . . . . . . . 1 . . . . . . . . Ally Attacks 398 | . . . . 27 20 . . 15 . . . . 229 60 47 . . . . . Total Damage 9388 | . . . . 420 582 . . 422 . . . . 4595 1796 1573 . . . . . Kills 75 | . . . . 6 5 . . 7 . . . . 39 8 10 . . . . . Allies Corrupted . | . . . . . . . . . . . . . . . . . . . . . Allies Melted 1 | . . . . . . . . . . . . . . . 1 . . . . . Intel | -11 -10 -9 -9 -8 -8 -7 -7 -7 -7 -6 -6 -5 -5 -5 -5 -5 -4 -4 -3 -3 ------- Run | Yrd Mat Mat Min Mat Sto Fac Low Low Dat Pro Fac Fac Ext Cet Arc Hub Fac DSF Res Qua Robot Analysis Total 4 | . . 2 . 2 . . . . . . . . . . . . . . . . Derelict Logs Recovered 6 | . . . . . . . 2 2 . 2 . . . . . . . . . . Drone Launches 2 | . . . . . . 2 . . . . . . . . . . . . . . Drone Recoveries 2 | . . . . . . 2 . . . . . . . . . . . . . . Exploration | -11 -10 -9 -9 -8 -8 -7 -7 -7 -7 -6 -6 -5 -5 -5 -5 -5 -4 -4 -3 -3 ------------- Run | Yrd Mat Mat Min Mat Sto Fac Low Low Dat Pro Fac Fac Ext Cet Arc Hub Fac DSF Res Qua Turns Passed 29239 | 154 2415 4402 505 5132 4075 2114 802 566 97 814 3056 1017 1758 653 107 568 38 260 304 402 Spaces Moved 19852 | 74 825 1551 190 1816 1389 2408 1101 563 93 821 3778 1703 1050 491 78 286 29 192 590 824 Core 9 | 4 . . . . . . . . . . 5 . . . . . . . . . Treads 6450 | 70 825 1551 190 1816 1389 229 . . . . . . 380 . . . . . . . Legs 1328 | . . . . . . . . . . . . . 281 491 78 286 29 163 . . Wheels . | . . . . . . . . . . . . . . . . . . . . . Hover 134 | . . . . . . . . . . . 134 . . . . . . . . . Flight 11931 | . . . . . . 2179 1101 563 93 821 3639 1703 389 . . . . 29 590 824 Fastest Speed 26 | 50 160 240 250 241 238 27 27 28 105 28 26 27 37 120 110 106 120 42 34 30 Average Speed 113 | 154 250 246 250 246 240 55 59 92 105 45 42 31 128 120 117 120 120 114 38 32 Slowest Speed 530 | 160 320 250 250 330 241 317 110 105 105 105 530 117 260 120 120 183 120 190 42 34 Overloaded Moves . | . . . . . . . . . . . . . . . . . . . . . Propulsion Burnouts . | . . . . . . . . . . . . . . . . . . . . . Robots Hopped 75 | . . . . . . 12 2 . . 2 9 10 1 . . . . 1 13 25 Cave-ins Triggered 1 | . . . . . . . . . . . . . 1 . . . . . . . Exploration Rate (%) 63 | 5 98 99 42 99 95 45 81 70 75 80 63 25 75 95 79 31 1 91 23 64 Regions Visited 20 Branch Regions 11 Pre-discovered Areas 3 | . . . . . . . . 2 1 . . . . . . . . . . . Known Exits Taken 15 | . . 1 . 1 1 1 1 1 1 1 1 1 . 1 1 1 1 . 1 . Unknown Exits Taken 4 | 1 1 . 1 . . . . . . . . . 1 . . . . . . . Scrap Searched 8 | . . . 1 . . . 3 3 . 1 . . . . . . . . . . Spaces Dug 244 | . . . . 2 1 19 . 1 . 23 21 6 170 . . 1 . . . . Terrain Destroyed 464 | . . 10 . 4 1 66 . 1 . 23 84 6 207 12 2 15 . . 28 5 Melee 50 | . . . . 2 1 17 . 1 . 1 21 6 . . . 1 . . . . Projectile 58 | . . . . 1 . 2 . . . 22 . . . 12 2 14 . . . 5 AOE 355 | . . 10 . . . 47 . . . . 63 . 207 . . . . . 28 . Terrain Rammed . | . . . . . . . . . . . . . . . . . . . . . Walls Destroyed . | . . . . . . . . . . . . . . . . . . . . . Machines Disabled . | . . . . . . . . . . . . . . . . . . . . . Actions | -11 -10 -9 -9 -8 -8 -7 -7 -7 -7 -6 -6 -5 -5 -5 -5 -5 -4 -4 -3 -3 --------- Run | Yrd Mat Mat Min Mat Sto Fac Low Low Dat Pro Fac Fac Ext Cet Arc Hub Fac DSF Res Qua Total 24981 | 94 1047 1909 207 2240 1944 3037 1237 604 92 1223 5010 2116 1374 533 87 408 31 233 634 921 Wait 3182 | . 120 152 . 157 291 391 115 27 . 358 1026 271 137 12 . 36 . 14 4 71 Move 19695 | 73 824 1550 189 1815 1388 2385 1096 562 92 816 3760 1683 1046 490 77 285 28 189 565 782 Hop 61 | . . . . . . 10 2 . . 2 8 9 1 . . . . 1 11 17 Pick Up 210 | 5 19 27 2 26 17 21 2 1 . . 23 12 15 3 . 11 . 10 11 5 Fast Attach 128 | 7 4 5 1 13 12 14 3 2 . 1 17 12 13 1 2 6 . 2 7 6 Attach 141 | . . 2 1 9 1 31 6 4 . 6 23 6 8 . 2 11 1 8 15 7 Detach 66 | . . 1 . 2 2 18 3 2 . 5 9 5 3 . . . . 1 8 7 Swap 176 | . 6 25 2 16 19 34 1 1 . 4 14 18 15 9 . 8 2 . 1 1 Drop 236 | . 10 32 4 30 28 40 4 2 . 1 21 18 18 7 2 . . 8 1 10 Fire 698 | 9 64 115 8 166 177 53 . . . 24 10 4 18 11 3 19 . . 11 6 Melee 253 | . . . . 4 5 40 5 3 . 6 99 24 32 . . 32 . . . 3 Ram 2 | . . . . . . . . . . . . . . . . . . . . 2 Kick . | . . . . . . . . . . . . . . . . . . . . . Crush 2 | . . . . 2 . . . . . . . . . . . . . . . . Escape Stasis 81 | . . . . . 4 . . . . . . 54 19 . . . . . . 4 Rewire 50 | . . . . . . . . . . . . . 49 . 1 . . . . . Trap . | . . . . . . . . . . . . . . . . . . . . . Miscellaneous . | . . . . . . . . . . . . . . . . . . . . . Route ------- -11/Scrapyard -10/Materials (discovered 5 exits: *Mat x3 / [*Min] / [*Sub]) -9/Materials (discovered 5 exits: *Mat x3 / *Min x2) -9/Mines (discovered 2 exits: *Mat / [*Exi]) -8/Materials (discovered 5 exits: *Fac x3 / *Sto x2) -8/Storage (discovered 2 exits: *Fac / [*Rec]) -7/Factory -7/Lower Caves -7/Lower Caves (discovered 2 exits: *Fac / *Dat) -7/Data Miner -6/Proximity Caves -6/Factory (discovered 4 exits: *Fac x2 / Low x2) -5/Factory (discovered 5 exits: *Fac / *Upp x2 / *Ext x2) -5/Extension (discovered 2 exits: *Fac / *Cet) -5/Cetus (discovered 3 exits: *Fac x2 / *Arc) -5/Archives -5/Hub_04(d) -4/Factory -4/DSF -3/Research (discovered 2 exits: *Qua x2) -3/Quarantine History --------- Turn | Location | Event 4 | -11/Scrapyard | Discovered new exit (range 15) 155 | -11/Scrapyard | Entered Materials 264 | -10/Materials | Discovered new exit (range 16) 311 | -10/Materials | Build established: Mutant 687 | -10/Materials | Discovered new exit (range 13) 1623 | -10/Materials | Discovered new exit (range 10) 1943 | -10/Materials | Discovered new exit (range 16) 2087 | -10/Materials | Discovered new exit (range 16) 2342 | -10/Materials | Repaired Lgt. Treads 2369 | -10/Materials | Repaired Lgt. Treads 2570 | -10/Materials | Entered another Materials area 2570 | -9/Materials | Evolved 2 slots: Propulsion x1, Utility x1 2572 | -9/Materials | Discovered new exit (range 15) 3105 | -9/Materials | Discovered new exit (range 16) 3706 | -9/Materials | Discovered new exit (range 13) 4836 | -9/Materials | Identified exit to Mines 5908 | -9/Materials | Discovered new exit (range 12) 6270 | -9/Materials | Repaired Imp. Assault Rifle 6632 | -9/Materials | Discovered new exit (range 15) 6972 | -9/Materials | Entered Mines 7332 | -9/Mines | A weapon hastily lodged in a ceiling crevice suddenly fell to the ground 7380 | -9/Mines | Discovered new exit (range 5) 7447 | -9/Mines | Deemed a non-threat by the Exiles lab entrance 7447 | -9/Mines | Discovered new exit (range 5) 7477 | -9/Mines | Entered Materials 7477 | -8/Materials | Accompanied by 2 allies 7477 | -8/Materials | Evolved 2 slots: Utility x2 7482 | -8/Materials | Led the pair of lost Derelicts to an unsafe place 7755 | -8/Materials | Identified exit to Storage 8073 | -8/Materials | Lost 5 parts (1p1n2u1w) 8100 | -8/Materials | Destroyed 7 combat bots 8397 | -8/Materials | Build established: Scavenger-Mutant 8825 | -8/Materials | Central database locked down 8966 | -8/Materials | Discovered new exit (range 6) 10166 | -8/Materials | Build established: Mutant 10665 | -8/Materials | Repaired Arm. Treads 10698 | -8/Materials | Repaired Med. Armor Plating 11185 | -8/Materials | Discovered new exit (range 10) 11447 | -8/Materials | Repaired Arm. Treads 12330 | -8/Materials | Discovered new exit (range 4) 12609 | -8/Materials | Entered Storage 12709 | -8/Storage | Identified exit to Factory 12965 | -8/Storage | Used back door to open Recycling access 12965 | -8/Storage | Discovered new exit (range 5) 13701 | -8/Storage | Core integrity fell below 50% 13796 | -8/Storage | Repaired ECM Suite 13835 | -8/Storage | Repaired Imp. Propulsion Shielding 14462 | -8/Storage | Found Prototype Protection 14462 | -8/Storage | Identified Lgt. Regenerative Plating 14704 | -8/Storage | Garrison activated, responded to threat 15409 | -8/Storage | First assault squad dispatched 15475 | -8/Storage | Repaired Graphene Brace 15566 | -8/Storage | Repaired Arm. Treads 16261 | -8/Storage | Met 01-MTF 16684 | -8/Storage | Entered Factory 16684 | -7/Factory | Accompanied by 1 ally (01-MTF) 16684 | -7/Factory | Evolved 2 slots: Propulsion x1, Utility x1 16689 | -7/Factory | 01-MTF left 17162 | -7/Factory | Lost 3 parts (2n1u) 17498 | -7/Factory | Repaired Imp. Sensor Array 17672 | -7/Factory | Build established: Hacker-Sprinter 17774 | -7/Factory | Discovered new exit (range 14) 17863 | -7/Factory | Identified exit to Lower Caves 18196 | -7/Factory | Fabricated Hacking Suite? 18422 | -7/Factory | Build established: Scavenger-Scout 18424 | -7/Factory | Repaired Imp. Sensor Array 18463 | -7/Factory | Repaired Weight Redist. System 18798 | -7/Factory | Entered Lower Caves 18818 | -7/Lower Caves | Learned Factory terminal intel 19212 | -7/Lower Caves | Build established: Scavenger-Mutant 19407 | -7/Lower Caves | Core integrity fell below 50% 19410 | -7/Lower Caves | Attracted the attention of an 0b10 base 19431 | -7/Lower Caves | Lost 3 parts (2n1u) 19554 | -7/Lower Caves | Discovered new exit (range 11) 19554 | -7/Lower Caves | Learned Factory stockpile data 19556 | -7/Lower Caves | Identified exit to Lower Caves 19600 | -7/Lower Caves | Entered another Lower Caves area 19630 | -7/Lower Caves | Discovered new exit (range 14) 19659 | -7/Lower Caves | A Commander dispatched an escort 19660 | -7/Lower Caves | Learned Extension emergency access door positions 19660 | -7/Lower Caves | Learned Armory emergency access door positions 19660 | -7/Lower Caves | Learned Factory stockpile data 19660 | -7/Lower Caves | Learned Research security intel 19660 | -7/Lower Caves | Learned Factory terminal intel 19683 | -7/Lower Caves | Identified exit to Factory 20014 | -7/Lower Caves | Learned location of Zion (-6) 20088 | -7/Lower Caves | Encountered a Warlord checkpoint 20150 | -7/Lower Caves | Discovered new exit (range 14) 20164 | -7/Lower Caves | Identified exit to Data Miner 20166 | -7/Lower Caves | Entered Data Miner 20166 | -7/Data Miner | Discovered new exit (range 6) 20186 | -7/Data Miner | Met Data Miner 20217 | -7/Data Miner | Learned location of Section 7 (-3) 20217 | -7/Data Miner | Acquired the access code to Warlord's prototype stash 20235 | -7/Data Miner | Received God Mode back door access code from Data Miner 20262 | -7/Data Miner | Identified exit to Proximity Caves 20263 | -7/Data Miner | Entered Proximity Caves 20399 | -6/Proximity Caves | Spotted B-75 Beast 20583 | -6/Proximity Caves | Build established: Scavenger-Scout 20789 | -6/Proximity Caves | Learned 4 Factory zone layouts 20873 | -6/Proximity Caves | Attracted the attention of an 0b10 checkpoint 20887 | -6/Proximity Caves | Discovered exit to Factory (range 14) 20984 | -6/Proximity Caves | Learned Factory stockpile data 21077 | -6/Proximity Caves | Entered Factory 21077 | -6/Factory | Evolved 2 slots: Propulsion x1, Utility x1 21080 | -6/Factory | Loaded intel: 26 terminal locations 21166 | -6/Factory | Build established: Scavenger-Assassin 21298 | -6/Factory | Fabricated Hacking Suite (x1) 21344 | -6/Factory | Identified exit to Lower Caves 22015 | -6/Factory | Discovered new exit (range 4) 22020 | -6/Factory | Identified exit to Factory 22146 | -6/Factory | Spotted B-75 Beast 22370 | -6/Factory | Fabricated Nuclear Pulse Thruster? 22736 | -6/Factory | Lost 3 parts (1n1u1w) 22897 | -6/Factory | Lost 3 parts (3n) 23194 | -6/Factory | Core integrity fell below 50% 23196 | -6/Factory | System corruption reached 10% 23247 | -6/Factory | Lost 6 parts (1p1n4u) 23404 | -6/Factory | Incoming investigation squad redirected 23433 | -6/Factory | Fabricated Nuclear Pulse Thruster (x2) 23527 | -6/Factory | Search patrols dispatched 23550 | -6/Factory | Build established: Hacker-Scout 23923 | -6/Factory | Found Prototype Processor 23923 | -6/Factory | Identified Exp. Targeting Computer 23984 | -6/Factory | Core integrity fell below 20% 24053 | -6/Factory | Discovered exit to Factory (range 4) 24097 | -6/Factory | Incoming investigation squad redirected 24133 | -6/Factory | Entered another Factory area 24133 | -5/Factory | Evolved 2 slots: Utility x2 24135 | -5/Factory | Loaded intel: 28 terminal locations 24494 | -5/Factory | Discovered new exit (range 14) 24495 | -5/Factory | Discovered new exit (range 22) 24499 | -5/Factory | Identified exit to Factory 24513 | -5/Factory | Identified exit to Upper Caves 24569 | -5/Factory | Fabricated Nuclear Pulse Thruster (x2) 24617 | -5/Factory | Discovered new exit (range 22) 24641 | -5/Factory | Identified exit to Extension 24974 | -5/Factory | Hacking Suite fried by hacking feedback 24974 | -5/Factory | Hacking Suite fried by hacking feedback 25150 | -5/Factory | Entered Extension 25327 | -5/Extension | Spotted B-75 Beast 25486 | -5/Extension | Rescued a captive Derelict 25487 | -5/Extension | Rescued a captive Derelict 25624 | -5/Extension | Rescued a captive Derelict 25626 | -5/Extension | Rescued a captive Derelict 25788 | -5/Extension | System corruption reached 10% 25818 | -5/Extension | Lost 3 parts (1n2u) 25845 | -5/Extension | Lost 4 allies 25858 | -5/Extension | Rescued a captive Derelict 26039 | -5/Extension | Crushed by falling debris 26085 | -5/Extension | Rescued a captive Derelict 26086 | -5/Extension | Rescued a captive Derelict 26093 | -5/Extension | Rescued a captive Derelict 26103 | -5/Extension | Rescued A7 26179 | -5/Extension | Rescued a captive Derelict 26341 | -5/Extension | Build established: Scavenger-Gladiator 26361 | -5/Extension | Rescued a captive Derelict 26650 | -5/Extension | First assault squad dispatched 26771 | -5/Extension | Rescued a captive Derelict 26772 | -5/Extension | Rescued a captive Derelict 26826 | -5/Extension | Discovered exit to Factory (range 10) 26827 | -5/Extension | Discovered new exit (range 6) 26897 | -5/Extension | Lost 6 allies 26908 | -5/Extension | Entered Cetus 26908 | -5/Cetus | Accompanied by 8 allies (A7) 26913 | -5/Cetus | Acquired a Cetus Manufacturing Module code from A7 26926 | -5/Cetus | Spotted Cetus Guard 26926 | -5/Cetus | Spotted Cetus Guard 26932 | -5/Cetus | Spotted Cetus Guard 26932 | -5/Cetus | Allies destroyed Cetus Guard 26932 | -5/Cetus | Spotted Cetus Guard 26940 | -5/Cetus | Allies destroyed Cetus Guard 26941 | -5/Cetus | Destroyed Cetus Guard 26955 | -5/Cetus | Allies destroyed Cetus Guard 26980 | -5/Cetus | Lost 3 allies 26997 | -5/Cetus | Started Cetus Manufacturing Module 27008 | -5/Cetus | Escorted A7 to Cetus Mainframe 27022 | -5/Cetus | Manufactured an Enhanced Grunt 27047 | -5/Cetus | Manufactured an Enhanced Grunt 27072 | -5/Cetus | Manufactured an Enhanced Grunt 27097 | -5/Cetus | Manufactured an Enhanced Grunt 27122 | -5/Cetus | Manufactured an Enhanced Grunt 27164 | -5/Cetus | Discovered new exit (range 15) 27185 | -5/Cetus | Spotted Cetus Guard 27185 | -5/Cetus | Spotted Cetus Guard 27186 | -5/Cetus | Destroyed Cetus Guard 27188 | -5/Cetus | Spotted Cetus Guard 27194 | -5/Cetus | Spotted Cetus Guard 27195 | -5/Cetus | Destroyed Cetus Guard 27198 | -5/Cetus | Allies destroyed Cetus Guard 27200 | -5/Cetus | Allies destroyed Cetus Guard 27208 | -5/Cetus | Discovered exit to Factory (range 16) 27215 | -5/Cetus | Met Revision 17 27349 | -5/Cetus | Discovered exit to Factory (range 15) 27448 | -5/Cetus | Build established: Scavenger-Mutant 27452 | -5/Cetus | Identified exit to Archives 27561 | -5/Cetus | Entered Archives 27561 | -5/Archives | Accompanied by 9 allies (A7) 27568 | -5/Archives | Received a hacking code to weaken MAIN.C 27581 | -5/Archives | Met Zhirov 27587 | -5/Archives | Reinforcements dispatched to Archives 27594 | -5/Archives | Unable to access archive contents 27608 | -5/Archives | Unable to access archive contents 27632 | -5/Archives | Reinforcements dispatched to Archives 27634 | -5/Archives | Zhirov warped through subspace 27648 | -5/Archives | Read partially decrypted archive contents 27652 | -5/Archives | Zhirov detonated Archives 27652 | -5/Archives | Discovered new exit (range 14) 27666 | -5/Archives | Identified exit to Hub_04(d) 27668 | -5/Archives | Entered Hub_04(d) 27683 | -5/Hub_04(d) | Lost 9 allies 27832 | -5/Hub_04(d) | Lost 6 parts (3n1u2w) 27975 | -5/Hub_04(d) | Hacking Suite fried by hacking feedback 28049 | -5/Hub_04(d) | Lost 4 parts (2n2u) 28215 | -5/Hub_04(d) | Discovered exit to Factory (range 11) 28236 | -5/Hub_04(d) | Entered Factory 28236 | -4/Factory | Evolved 2 slots: Utility x2 28273 | -4/Factory | Identified exit to DSF 28274 | -4/Factory | Entered DSF 28324 | -4/DSF | Additional patrols routed to DSF 28391 | -4/DSF | Build established: Scavenger-Assassin 28527 | -4/DSF | Discovered new exit (range 14) 28533 | -4/DSF | Identified exit to Research 28534 | -4/DSF | Entered Research 28534 | -3/Research | Evolved 2 slots: Power x1, Propulsion x1 28557 | -3/Research | Lost 10 parts (2p3n4u1w) 28734 | -3/Research | Revision forces began assault on 0b10 28742 | -3/Research | Identified exit to Quarantine 28838 | -3/Research | Entered Quarantine 28851 | -3/Quarantine | Identified exit to Research 28905 | -3/Quarantine | Found Alien Reactor 28905 | -3/Quarantine | Identified Matter Drive 28936 | -3/Quarantine | Build established: Hacker-Mutant 29089 | -3/Quarantine | Met incapacitated Sigix Warrior 29089 | -3/Quarantine | Lockdown squad dispatched 29090 | -3/Quarantine | Acquired the access code to the Sigix quarantine chamber 29091 | -3/Quarantine | Unlocked Sigix quarantine chamber 29141 | -3/Quarantine | Found Alien Artifact 29141 | -3/Quarantine | Identified Core Reset Matrix 29141 | -3/Quarantine | Used Core Reset Matrix 29145 | -3/Quarantine | Sensed 5 artifacts in vicinity 29158 | -3/Quarantine | Scanned by Researcher 29162 | -3/Quarantine | Found Sigix Broadsword 29170 | -3/Quarantine | Core integrity fell below 50% 29201 | -3/Quarantine | Lost 10 parts (2n7u1w) 29203 | -3/Quarantine | Hacking Suite fried by hacking feedback 29221 | -3/Quarantine | Core integrity fell below 20% 29233 | -3/Quarantine | Spotted Fortress 29240 | -3/Quarantine | Destroyed by P-80 Master with Gamma Rifle Last Messages --------------- 29179_ Slug penetrates Door. 29179_ Slug penetrates Wall. 29188_ Connecting with Terminal... Feedback: Hacking Suite fried. 29203_ ALERT: Suspicious activity at Terminal Q012. Dispatching Investigation squad. 29212_ Dropped Mic. Antimatter Reactor. 29212_ Acquired Mic. Antimatter Reactor. 29214_ K-01 Serf cleans the Antimatter Diverter. 29216_ Y GD0OQVK> 5TK 65AQIBPZT 2P<8 P UF:EBGS 29223_ Connecting with Terminal... 29233_ VXQ%DPW89E0FZ6B7PBVAT,ZQ60MH/VZ5>D: [Achievement: Nope] 29234_ U-05 Engineer builds a Wall. 29234_ Core Analyzer destroyed. 29234_ Critical hit (Blast). 29234_ Acquired 8 matter. 29238_ P-80 Master resets S-43 Plague, system corruption cleaned. 29239_ Imp. Diametric Drive destroyed. [Achievement: 20k Club] Map ----- +----------------------------------------------------+ | ????????????#* ] #????????????????????????? | | ???????????#####/### #????????????????????????? | | ???????????# # #????????????????????????? | | ???????????#"""" # #????????????????????????? | | ???????????#"""" # #????????????????????????? | | ???????????#"""" # #????????????????????????? | | ???????????#"""" # #????????????????????????? | | ???????????#"""" # #????????????????????????? | | ?????!?????# # #????????????????????????? | | ???????????# # #????????????????????????? | | ???????????# # #????????????????????????? | | ???????????# # #????????????????????????? | | ???????????# # #????????????????????????? | | ???????????######### #????????????????????????? | | ??????????######???# #????????????????????????? | | ??????????#! ??# #????????????????????????? | | ??????????# ??# #????????????????????????? | | ??????????? ?# #????????????????????????? | | ??????????# """ ?# #????????????????????????? | | ??????????# """ # #????????????????????????? | | ??????????# "S # #????????????????????????? | | ??????????# """ + ###??????????????????????? | | ??????????# "" # T#??????????????????????? | | ??????????# # ""#?###################### | | ??????????########## ##### | | ????????? gg @s / | | ???????? g pps/ | | ????????? g k s/ | | ????????? / | | ??????????################### | | ????????????????????????????###################### | | ?????????????????????????????????????????????????? | | ?????????????????????????????????????????????????? | | ?????????????????????????????????????????????????? | | ?????????????????????????????????????????????????? | | ?????????????????????????????????????????????????? | | ?????????????????????????????????????????????????? | | ?????????????????????????????????????????????????? | | ?????????????????????????????????????????????????? | | | | | | | | | | | | | | | | | | | | | | | +----------------------------------------------------+ Best States ------------- Heat Dissipation 46 Energy Generation 33 Energy Capacity 315 Matter Stores 300 Matter Capacity 300 Sight Range 22 Robot Scan Range 16 Terrain Scan Range 20 Terrain Scan Density 85 ECM Strength 2 Cloak Strength 2 Additional Mass Support 9 Armor Coverage 1275 Propulsion Shielding 66 Evasion (%) 64 Targeting Accuracy 8 Melee Accuracy 6 Core Analysis 9 Recoil Reduction 5 Offensive Hacking 50 Defensive Hacking 10 Authchip Count 1 Item Schematics ----------------- Ionic Axe | -3/Quarantine | Archive Robot Schematics ------------------ None Fabricated ------------ Hacking Suite | x1 | -7/Factory Hacking Suite | x1 | -6/Factory Nuclear Pulse Thruster | x2 | -6/Factory Nuclear Pulse Thruster | x2 | -6/Factory Nuclear Pulse Thruster | x2 | -5/Factory Alien Tech Used ----------------- Matter Drive Core Reset Matrix Sigix Broadsword Achievements -------------- 20k Club Alien Roots Alien Tech False Reunion Generalissimo Gun Specialist Main Advantage Nope Project G-00 Revising The Future Challenges ------------ None Game ------ Seed ControlDecoySystem Manual? 0 Play Time 07:13:34 Cumulative 80.3 hours Start 2024.07.12 @ 12:39:15 End 2024.07.14 @ 21:08:06 Sessions 11 Manual Loads 0 Difficulty Rogue Special Mode None Game No. 52 Rogue 51 Adventurer 1 Explorer 0 Win Type - Total 0 Types 0/0/0/0/0/0/0/0/0 Lore% 35 Gallery% 38 Achievement% 37 Wizard Run 0 Options --------- Layout 1 ASCII 0 Keyboard 0 Movement Mouse Keybinds 0 Fullscreen 1 Font 24/Proggy Map View 76x35 Zoom Use 0% Tactical HUD 1 Map Filters NONE Filters NONE Steam 1 RUN: 284bd2a5-3e8e-47b7-841d-9cd132afadc6